[Event "21st IPCA World Championship 2022"]
[Site "Ashdod"]
[Date "2022.05.16"]
[Round "9.5"]
[White "Aleksandrova, Aleksandra"]
[Black "Yarmonov, Igor"]
[Result "0-1"]
[ECO "D00"]
[WhiteElo "1687"]
[BlackElo "2394"]
[Annotator "TA"]
[PlyCount "98"]
[EventDate "2022.05.09"]
[EventType "swiss"]
[EventCountry "ISR"]
[SourceTitle "playchess.com"]
[Source "ChessBase"]
[SourceQuality "1"]
[TimeControl "5400+30"]

{[%evp 9,98,-27,-1,-46,-48,-44,-45,-42,-40,-67,-36,-32,-31,-59,-44,-52,-73,-102,-95,-93,-94,-75,-37,-37,-35,-33,-38,-44,-34,-27,-10,-18,0,0,0,0,0,0,0,0,0,-12,-11,-17,-11,-15,-2,-20,-9,-31,-37,-37,-41,-55,-12,-10,-8,-22,0,-36,-36,-40,-52,-54,-52,-62,-66,-74,-35,-22,-8,-194,-198,-645,-626,-654,-618,-541,-487,-851,-814,-577,-416,-935,-906,-832,-750,-837,-788,-1506,-1233]} 1. d4 {[%emt 0:00:05]} d5 {[%emt 0:00:27]} 2. e3 {[%emt 0:00:09]} Nf6 {[%emt 0:00:40]} 3. Bd3 {[%emt 0:00:15]} e6 {[%emt 0:01:57]} 4. Nd2 {[%emt 0:00:10]} b6 {[%emt 0:00:39]} 5. f4 {[%emt 0:00:31]} Ba6 {[%emt 0:00:18] [#]} 6. g4 $146 {[%emt 0:03:24] D00: 1 d4 d5: Unusual lines.} ({Predecessor:} 6. Qe2 Bxd3 7. cxd3 c5 8. Ngf3 Nc6 9. Ne5 Qc7 10. Ndf3 cxd4 11. Nxc6 Qxc6 12. Nxd4 Qa4 {1-0 (27) Nieberle,C (1740)-Heyne,R (1841) Germany 2017}) 6... Bxd3 {[%emt 0:00:37]} 7. cxd3 {[%emt 0:00:01]} c5 {[%emt 0:00:45]} 8. g5 {[%emt 0:00:20] Black is slightly better.} Nfd7 {[%emt 0:00:07]} 9. dxc5 {[%emt 0:04:52]} Bxc5 {[%emt 0:00:09]} 10. d4 {[%emt 0:00:19]} Bd6 {[%emt 0:00:23]} 11. Qf3 {[%emt 0:00:29]} Nc6 {[%emt 0:00:24] And now ...Nb4 would win.} 12. a3 {[%emt 0:00:39] Inhibits Nb4.} Rc8 {[%emt 0:02:30]} 13. b4 {[%emt 0:01:27]} Nf8 {[%emt 0:00:47]} 14. h4 {[%emt 0:01:53]} h6 {[%emt 0:00:28]} 15. Ne2 {[%emt 0:05:33]} hxg5 {[%emt 0:03:05]} 16. hxg5 {[%emt 0:03:58]} Rxh1+ {[%emt 0:00:32]} 17. Qxh1 {[%emt 0:00:01]} Ne7 {[%emt 0:00:41]} 18. Nf3 {[%emt 0:02:24]} Qd7 {[%emt 0:02:42]} 19. Bd2 {[%emt 0:03:42]} Qb5 {[%emt 0:07:47]} 20. Kf2 {[%emt 0:01:59]} Nf5 {[%emt 0:03:39]} 21. a4 {[%emt 0:12:02]} Qd3 {[%emt 0:04:13][%cal Od6b4]} 22. Rc1 {[%emt 0:04:05]} Rc4 {[%emt 0:04:32]} 23. Rxc4 {[%emt 0:03:43]} Qxc4 {[%emt 0:00:08]} 24. Qb1 {[%emt 0:02:04] Against Qb3} Ne7 {[%emt 0:07:06]} 25. Bc3 {[%emt 0:01:49]} f6 {[%emt 0:02:33]} 26. gxf6 {[%emt 0:04:43]} gxf6 {[%emt 0:00:04]} 27. Nd2 {[%emt 0:00:08]} Qc8 {[%emt 0:01:19]} 28. b5 {[%emt 0:03:29]} Nfg6 {[%emt 0:02:01]} 29. Bb4 {[%emt 0:05:58]} Bxb4 {[%emt 0:02:36]} 30. Qxb4 {[%emt 0:00:02]} Qc2 {[%emt 0:05:22]} 31. a5 {[%emt 0:07:17]} bxa5 {[%emt 0:07:54]} 32. Qxa5 {[%emt 0:00:02]} Nh4 {[%emt 0:00:42]} 33. Qc3 {[%emt 0:02:49]} Qd1 {[%emt 0:09:20]} 34. Qc1 {[%emt 0:01:37]} Qxc1 {[%emt 0:03:33]} 35. Nxc1 $15 {[%emt 0:00:01][%mdl 4096] Endgame KNN-KNN} Kd7 {[%emt 0:03:16]} 36. Nd3 {[%emt 0:07:14]} Kc7 {[%emt 0:02:32]} 37. Nb1 {[%emt 0:00:38]} Kb6 {[%emt 0:00:24]} 38. Nc3 {[%emt 0:00:00]} Nhf5 {[%emt 0:02:39]} 39. Nc5 {[%emt 0:00:34]} Ka5 {[%emt 0:01:06]} 40. Na6 $2 {[%emt 0:13:16] [#] Now White is beyond hope.} (40. Ke2 $1 $11 {and White is okay.}) 40... Nd6 $1 $19 {[%emt 0:01:15]} 41. Ke2 $2 {[%emt 0:02:11]} (41. Nc7) 41... Nxb5 {[%emt 0:01:34]} 42. Nxb5 {[%emt 0:00:11]} Kxb5 {[%emt 0:00:05] KN-KN} 43. Nc7+ {[%emt 0:00:06]} Kc4 {[%emt 0:00:37] Strongly threatening ...a5.} 44. Nxe6 {[%emt 0:00:33]} (44. Na6 $142 Nf5 45. Kd2) 44... a5 {[%emt 0:00:17]} 45. Nc5 {[%emt 0:00:23] [#]} Kc3 $1 {[%emt 0:05:42] White must now prevent ...f5.} 46. Na4+ {[%emt 0:03:10]} (46. Kd1 $142 Nc8 47. Ne6) 46... Kc2 {[%emt 0:01:29] Black is clearly winning.} 47. Kf3 {[%emt 0:00:46]} f5 {[%emt 0:00:11] ...Nc8 is the strong threat.} 48. Ke2 {[%emt 0:01:47]} Nc8 {[%emt 0:01:46]} 49. Nc5 {[%emt 0:01:27]} Nb6 {[%emt 0:00:45] Weighted Error Value: White=0.57/Black=0.06 (flawless)} 0-1

[Event "21st IPCA World Championship 2022"]
[Site "Ashdod"]
[Date "2022.05.16"]
[Round "9.6"]
[White "Babanov, Aleksandr"]
[Black "Valenta, Vit Vaclav"]
[Result "0-1"]
[ECO "D75"]
[WhiteElo "1929"]
[BlackElo "2014"]
[Annotator "TA"]
[PlyCount "110"]
[EventDate "2022.05.09"]
[EventType "swiss"]
[EventCountry "ISR"]
[SourceTitle "playchess.com"]
[Source "ChessBase"]
[SourceQuality "1"]
[TimeControl "5400+30"]

{[%evp 20,110,8,8,0,18,32,22,30,26,33,21,23,18,22,-377,-374,-429,-436,-431,-433,-447,-440,-488,-479,-476,-455,-446,-444,-552,-534,-570,-565,-622,-616,-748,-729,-735,-745,-734,-739,-732,-712,-792,-807,-808,-807,-811,-783,-784,-795,-824,-822,-864,-843,-835,-831,-889,-874,-936,-756,-1210,-1187,-1182,-1150,-1330,-1318,-1417,-1373,-6303,-6219,-29967,-29970,-29970,-29971,-29973,-5585,-29974,-29975,-29979,-29980,-29980,-29981,-29980,-29981,-29985,-29984,-29986,-29987,-29987,-29988,-29988,-29987]} 1. Nf3 {[%emt 0:00:09]} Nf6 {[%emt 0:00:42]} 2. g3 {[%emt 0:00:24]} c5 {[%emt 0:00:14]} 3. Bg2 {[%emt 0:00:09]} Nc6 {[%emt 0:00:12]} 4. c4 {[%emt 0:03:23]} g6 {[%emt 0:00:10]} 5. Nc3 {[%emt 0:00:13]} Bg7 {[%emt 0:00:08]} 6. O-O {[%emt 0:01:01]} O-O {[%emt 0:00:09]} 7. e3 {[%emt 0:01:26]} d5 {[%emt 0:08:44]} 8. cxd5 {[%emt 0:03:41]} Nxd5 {[%emt 0:00:03]} 9. d4 {[%emt 0:10:09]} Nxc3 {[%emt 0:20:18]} 10. bxc3 {[%emt 0:03:08]} Qa5 {[%emt 0:02:04]} 11. Qb3 {[%emt 0:10:37]} Qc7 {[%emt 0:07:38] D75: Fianchetto Grünfeld: Main Line with 7...c5.} 12. Ba3 {[%emt 0:04:12]} Be6 {[%emt 0:12:45][%cal Bc8e6,Be6d5,Bd5e4][%mdl 32] [#]} 13. Qb5 $146 {[%emt 0:07:15]} ({Predecessor:} 13. Qa4 Bd7 14. Qc4 cxd4 15. cxd4 Qa5 16. Bb2 Rac8 17. Qb3 Be6 18. Qa3 Bd5 19. Rfc1 {0-1 (36) Eising,J-Van Baarle,J Amsterdam 1975}) 13... cxd4 {[%emt 0:02:39] The position is equal.} 14. cxd4 {[%emt 0:02:10]} a6 {[%emt 0:04:57]} 15. Qe2 {[%emt 0:03:14]} Qa5 {[%emt 0:06:10] Against Ng5} 16. Qb2 {[%emt 0:07:00]} Bd5 {[%emt 0:04:10]} 17. Bc5 $2 {[%emt 0:10:24][%mdl 8192] Loses the game.} (17. Rac1 $11) 17... Qxc5 $1 $19 {[%emt 0:01:07]} 18. Rfc1 {[%emt 0:12:05]} Qd6 {[%emt 0:06:52]} 19. Qe2 {[%emt 0:02:25]} Be4 {[%emt 0:01:44]} 20. a4 {[%emt 0:00:54]} Rac8 {[%emt 0:00:57]} 21. Nd2 {[%emt 0:01:44]} Bxg2 {[%emt 0:01:03]} 22. Kxg2 {[%emt 0:00:02]} Nb4 {[%emt 0:01:21]} 23. Ne4 {[%emt 0:01:53]} Qd5 {[%emt 0:01:23]} 24. f3 {[%emt 0:00:08]} a5 {[%emt 0:01:28]} 25. Nc3 {[%emt 0:01:10]} Qc4 {[%emt 0:00:35]} 26. Qd2 {[%emt 0:03:59]} Qd3 {[%emt 0:00:54]} 27. Ne4 {[%emt 0:01:32]} Qxd2+ {[%emt 0:00:59]} 28. Nxd2 {[%emt 0:00:07]} Nc2 {[%emt 0:00:23]} 29. Rab1 {[%emt 0:01:08]} Nxe3+ {[%emt 0:00:49]} 30. Kf2 {[%emt 0:00:09]} Bxd4 {[%emt 0:01:26]} 31. Nb3 {[%emt 0:00:45]} Bb6 {[%emt 0:01:21]} 32. Ke2 {[%emt 0:01:41]} Nd5 {[%emt 0:00:58] [#] Strongly threatening ...Nc3+.} 33. Nd2 {[%emt 0:02:05]} Rxc1 {[%emt 0:00:46]} 34. Rxc1 {[%emt 0:00:15]} Be3 {[%emt 0:00:11]} 35. Rc2 {[%emt 0:01:33]} Bxd2 {[%emt 0:00:12]} 36. Rc5 {[%emt 0:01:35] [#]} e6 $1 {[%emt 0:00:21]} 37. Kxd2 {[%emt 0:00:10][%mdl 4096] Endgame KRN-KR} b6 {[%emt 0:00:07]} 38. Rc6 {[%emt 0:00:32]} Rd8 {[%emt 0:00:08]} 39. Ke2 {[%emt 0:00:14]} Rd7 {[%emt 0:00:15]} 40. h4 {[%emt 0:00:41]} Rc7 {[%emt 0:00:08]} 41. Rd6 {[%emt 0:00:11]} Rc4 {[%emt 0:00:18]} 42. f4 {[%emt 0:02:29]} Rxa4 {[%emt 0:03:00]} 43. Kf3 {[%emt 0:00:22]} Kg7 {[%emt 0:00:12] Hoping for ...b5.} 44. Kg4 {[%emt 0:00:27]} Ra3 {[%emt 0:00:18] ( -> ...b5)} 45. h5 {[%emt 0:01:23]} Ne3+ {[%emt 0:02:04]} 46. Kh3 {[%emt 0:01:08]} Nf5 {[%emt 0:00:17]} 47. Rxb6 {[%emt 0:00:59]} Rxg3+ {[%emt 0:00:10]} 48. Kh2 {[%emt 0:00:13]} a4 {[%emt 0:00:22][%cal Ba5a4,Ba4a3,Ba3a2][%mdl 32] Black mates.} 49. hxg6 {[%emt 0:00:28]} hxg6 {[%emt 0:00:08]} 50. Ra6 {[%emt 0:00:12]} a3 {[%emt 0:00:10]} 51. Ra5 {[%emt 0:00:08]} Rb3 {[%emt 0:00:12]} 52. Ra7 {[%emt 0:00:40]} Nd4 {[%emt 0:00:50]} 53. Ra4 {[%emt 0:00:22]} Rb2+ {[%emt 0:00:18]} 54. Kg3 {[%emt 0:00:27]} a2 {[%emt 0:00:14]} 55. f5 {[%emt 0:01:19]} Nc2 {[%emt 0:01:04] Weighted Error Value: White=0.65/Black=0.02 (flawless)} 0-1

[Event "21st IPCA World Championship 2022"]
[Site "Ashdod"]
[Date "2022.05.16"]
[Round "9.7"]
[White "Alperovich, Asher"]
[Black "Srimskov, Elishar"]
[Result "0-1"]
[ECO "A66"]
[WhiteElo "1865"]
[BlackElo "1992"]
[Annotator "TA"]
[PlyCount "120"]
[EventDate "2022.05.09"]
[EventType "swiss"]
[EventCountry "ISR"]
[SourceTitle "playchess.com"]
[Source "ChessBase"]
[SourceQuality "1"]
[TimeControl "5400+30"]

{[%evp 13,120,47,55,58,64,41,47,54,39,35,33,0,0,-45,-56,-54,-45,-49,94,92,73,70,116,34,75,15,15,5,77,-25,28,0,110,39,160,161,157,145,210,201,244,208,364,272,456,253,260,241,296,297,281,233,416,275,284,0,0,0,104,97,287,281,248,-129,-131,-134,-128,-216,-145,-145,-137,-159,-128,-168,-168,-166,-159,-153,-153,-147,-147,-489,-215,-270,-198,-216,-76,-52,-37,-331,-8,-8,-8,-8,-8,-8,0,0,0,-8,-8,-8,-8,-8,-8,-8,-8,-29977,-11278]} 1. d4 {[%emt 0:00:03]} Nf6 {[%emt 0:00:24]} 2. c4 {[%emt 0:00:05]} e6 {[%emt 0:00:41]} 3. Nc3 {[%emt 0:00:43]} c5 {[%emt 0:00:48]} 4. d5 {[%emt 0:00:39]} exd5 {[%emt 0:00:59]} 5. cxd5 {[%emt 0:00:02]} d6 {[%emt 0:00:23]} 6. e4 {[%emt 0:03:28][%cal Be2e4,Be4e5][%mdl 32]} g6 {[%emt 0:00:47]} 7. f4 {[%emt 0:00:20]} Qe7 {[%emt 0:04:06]} 8. Nf3 {[%emt 0:02:59] A66: Modern Benoni: Mikenas Attack.} Bg7 {[%emt 0:04:38]} (8... Nxe4 $2 9. Qa4+ Nd7 10. Qxe4 $18) 9. Bb5+ {[%emt 0:05:42]} Bd7 {[%emt 0:02:22]} 10. e5 {[%emt 0:06:19] White is slightly better.} O-O $1 {[%emt 0:01:49]} 11. O-O {[%emt 0:04:24]} Ne8 {[%emt 0:01:17]} 12. Bc4 {[%emt 0:10:51]} Bg4 {[%emt 0:07:05] [#]} 13. Re1 $146 {[%emt 0:13:25]} ({Predecessor:} 13. e6 f5 14. h3 Bh5 15. Qd3 Bxf3 16. Rxf3 Na6 17. Be3 Nac7 18. Rb1 Rb8 19. Rff1 {1-0 (53) Kalesis,N (2440)-Darmarakis,M (2199) Aghia Pelagia 2004}) 13... Bxf3 {[%emt 0:04:44]} 14. Qxf3 {[%emt 0:00:41]} ({Of course not} 14. gxf3 Nd7 $11) 14... dxe5 {[%emt 0:00:20]} 15. fxe5 {[%emt 0:02:19] [#] Qg3 is the strong threat.} Bxe5 {[%emt 0:05:25]} (15... Nd6 $1 $15 {keeps the upper hand.} 16. Bb3 (16. Qe2 Nxc4) 16... Nd7) 16. Bf4 $1 $36 {[%emt 0:01:44][%mdl 2048] Black is under strong pressure.} Bd4+ {[%emt 0:02:37]} 17. Kh1 {[%emt 0:00:41][%mdl 1024] White has strong compensation.} Qd8 {[%emt 0:03:30]} 18. Nb5 {[%emt 0:03:12]} (18. Rad1 $1 $16) 18... Bg7 {[%emt 0:05:11]} 19. Qg3 {[%emt 0:05:47]} (19. d6 $16 Nc6 20. Rad1) 19... Nd7 $11 {[%emt 0:01:23]} 20. d6 {[%emt 0:05:30]} Nef6 {[%emt 0:03:17]} (20... Nb6 $1 $11 {keeps the balance.} 21. Be2 Bxb2) 21. Be2 {[%emt 0:04:26]} ({White should play} 21. Re7 $16) 21... Ne4 {[%emt 0:07:00]} (21... Qb6 $142) 22. Qe3 {[%emt 0:01:02]} Nef6 {[%emt 0:03:00]} (22... Re8 $11) 23. Bf3 {[%emt 0:02:07]} (23. Nc7 $16) 23... a6 {[%emt 0:01:08]} ({Better is} 23... Re8 $14 24. Qd2 Rxe1+ 25. Rxe1 Qb6) 24. Nc7 $16 {[%emt 0:03:08]} Rb8 {[%emt 0:00:17]} 25. Rad1 {[%emt 0:00:37]} Qc8 {[%emt 0:02:17]} (25... c4 $16 {might work better.} 26. Bg5 b5 27. Nxa6 Re8) 26. Qa3 $18 {[%emt 0:03:52]} Rd8 {[%emt 0:03:48]} 27. h3 {[%emt 0:01:13]} Bf8 $2 {[%emt 0:02:41]} (27... Nb6 28. Qxc5 Qf5 29. Qxf5 (29. Qxb6 Qxf4 30. Bd5 Kh8 $11) 29... gxf5) 28. Re7 {[%emt 0:04:09]} b5 $2 {[%emt 0:05:50] [#]} (28... Nb6) 29. Qe3 {[%emt 0:05:59]} (29. Bd5 $142 $1) 29... Nb6 {[%emt 0:06:39] [#]} 30. Qxc5 $1 {[%emt 0:06:49]} Bxe7 {[%emt 0:00:37]} (30... a5 31. Ree1) 31. dxe7 {[%emt 0:00:08]} Rxd1+ {[%emt 0:00:12]} 32. Bxd1 {[%emt 0:00:04][%cal Od1g4] Strongly threatening Bg4! A strong pair of Bishops.} Nbd7 $2 {[%emt 0:04:22]} (32... Qd7) 33. Qd4 {[%emt 0:02:25]} Rb7 {[%emt 0:01:29]} 34. Qd6 {[%emt 0:01:25]} (34. Nxa6 Qc4 35. Be3 Qc6 $16) (34. Bg4 $18 {Intending Bxd7 and mate.} Rxc7 35. Bxc7 Nxg4 36. hxg4) 34... Rb6 $11 {[%emt 0:01:29]} 35. Qd4 {[%emt 0:00:53] aiming for Bg4.} Rc6 {[%emt 0:00:41]} (35... Rb7 $1 $11 36. Bg4 (36. Nxa6 Qc4 $16) 36... Rxc7 37. Bxc7 Nxg4) 36. Bg4 $16 {[%emt 0:00:32]} Rxc7 {[%emt 0:01:39]} (36... Rc4 $16 37. Qd6 Re4) 37. Bxc7 $18 {[%emt 0:00:23]} Qxc7 {[%emt 0:01:14] [#]} 38. Qxd7 $3 {[%emt 0:00:45][%mdl 512]} Nxd7 $17 {[%emt 0:00:37]} 39. e8=Q+ {[%emt 0:00:24]} Nf8 {[%emt 0:00:07] Threatens to win with ...Qc1+.} 40. Qc8 {[%emt 0:00:35]} (40. Qe3 $17 {was called for.}) 40... Qxc8 {[%emt 0:00:24]} 41. Bxc8 $19 {[%emt 0:00:01][%mdl 4096] Endgame KB-KN} a5 {[%emt 0:00:12]} 42. a3 {[%emt 0:00:34]} b4 {[%emt 0:00:22]} 43. Kg1 {[%emt 0:00:12]} bxa3 {[%emt 0:00:35]} 44. bxa3 {[%emt 0:00:08]} Ne6 {[%emt 0:00:15]} 45. Kf2 {[%emt 0:00:35]} Kf8 $1 {[%emt 0:00:06]} 46. Ke3 {[%emt 0:00:15]} Ke7 {[%emt 0:00:03]} 47. Kd3 $2 {[%emt 0:00:58][%mdl 8192]} (47. Ba6 $17) 47... Kd6 {[%emt 0:00:56]} (47... Kd8 $142 48. Bxe6 fxe6) 48. Kc4 {[%emt 0:00:31]} Kc6 {[%emt 0:01:20]} 49. g3 {[%emt 0:00:44] [#]} h5 {[%emt 0:00:41]} (49... Ng5 $1 $19 {Hoping for ...h5.} 50. Kd3 Kc7) 50. h4 $17 {[%emt 0:00:36]} Ng7 {[%emt 0:03:53]} 51. Bh3 {[%emt 0:00:57][%mdl 8192] [#]} (51. g4 $1 $15) 51... f6 $2 {[%emt 0:01:24]} (51... Nf5 $1 $19 {[%cal Rf5g3]} 52. Bxf5 gxf5) 52. g4 $11 {[%emt 0:00:26]} hxg4 {[%emt 0:00:22]} 53. Bxg4 {[%emt 0:00:01]} Kb6 {[%emt 0:04:12]} 54. Kd5 {[%emt 0:00:57]} Kb5 {[%emt 0:00:05] And now ...Ka4 would win.} 55. Bd7+ {[%emt 0:00:24]} Kb6 {[%emt 0:00:14]} 56. Kd6 {[%emt 0:00:41]} g5 {[%emt 0:00:34]} 57. hxg5 {[%emt 0:00:30]} fxg5 {[%emt 0:00:02][%cal Bf6g5,Bg5g4,Bg4g3][%mdl 32]} 58. Ke5 {[%emt 0:00:06]} Nh5 {[%emt 0:00:33]} 59. Kf5 {[%emt 0:00:37]} g4 {[%emt 0:00:02] ( -> ...g3)} 60. Bc8 $2 {[%emt 0:00:55][%mdl 8192]} (60. Kg5 $11) 60... g3 {[%emt 0:07:22] Never resign too early!  Weighted Error Value: White=0.72/Black=0.60} 0-1

[Event "21st IPCA World Championship 2022"]
[Site "Ashdod"]
[Date "2022.05.16"]
[Round "9.8"]
[White "Frumin, Rebeka"]
[Black "Oliel, Yehonatan"]
[Result "0-1"]
[ECO "B02"]
[WhiteElo "1319"]
[BlackElo "1535"]
[Annotator "NA RC COMBH"]
[PlyCount "98"]
[EventDate "2022.05.09"]
[EventType "swiss"]
[EventCountry "ISR"]
[SourceTitle "playchess.com"]
[Source "ChessBase"]
[SourceQuality "1"]
[TimeControl "5400+30"]

1. e4 {[%emt 0:00:07]} Nf6 {[%emt 0:00:52]} 2. Nc3 {[%emt 0:00:58]} d5 {[%emt 0:00:37]} 3. e5 {[%emt 0:01:52]} Nfd7 {[%emt 0:00:59]} 4. d4 {[%emt 0:01:51]} c5 {[%emt 0:00:58]} 5. Nxd5 {[%emt 0:02:41]} cxd4 {[%emt 0:00:49]} 6. Qxd4 {[%emt 0:02:12]} Nb6 {[%emt 0:01:30]} 7. Bb5+ {[%emt 0:01:31]} Nc6 {[%emt 0:01:02]} 8. c4 {[%emt 0:05:19]} e6 {[%emt 0:01:31]} 9. Qf4 {[%emt 0:01:53]} exd5 {[%emt 0:02:51]} 10. Nf3 {[%emt 0:01:10]} Bb4+ {[%emt 0:11:31]} 11. Bd2 {[%emt 0:05:52]} Bxd2+ {[%emt 0:03:18]} 12. Qxd2 {[%emt 0:00:15]} O-O {[%emt 0:04:09]} 13. O-O {[%emt 0:00:41]} Ne7 {[%emt 0:04:22]} 14. c5 {[%emt 0:02:14]} Nd7 {[%emt 0:02:34]} 15. b4 {[%emt 1:09:24]} a6 {[%emt 0:06:26]} 16. Bd3 {[%emt 0:00:00]} Nc6 {[%emt 0:02:00]} 17. Rfe1 {[%emt 0:00:00]} Re8 {[%emt 0:01:40]} 18. Qf4 {[%emt 0:00:00]} h6 {[%emt 0:04:34]} 19. Qf5 {[%emt 0:00:00]} g6 {[%emt 0:02:15]} 20. Qf4 {[%emt 0:00:00]} Kg7 {[%emt 0:01:30]} 21. a3 {[%emt 0:00:00]} Qc7 {[%emt 0:02:23]} 22. Qg3 {[%emt 0:00:00]} Re6 {[%emt 0:06:46]} 23. Rad1 {[%emt 0:00:00]} Ndxe5 {[%emt 0:03:18]} 24. b5 {[%emt 0:00:00]} Nxf3+ {[%emt 0:01:57]} 25. Qxf3 {[%emt 0:00:00]} Ne5 {[%emt 0:02:22]} 26. Qxd5 {[%emt 0:00:00]} Nxd3 {[%emt 0:00:46]} 27. Qxd3 {[%emt 0:00:00]} Qxc5 {[%emt 0:01:33]} 28. Rf1 {[%emt 0:00:00]} axb5 {[%emt 0:01:52]} 29. Rc1 {[%emt 0:00:00]} Qf5 {[%emt 0:05:17]} 30. Qd8 {[%emt 0:00:00]} Rc6 {[%emt 0:01:09]} 31. Rce1 {[%emt 0:00:00]} Qd7 {[%emt 0:01:41]} 32. Qh4 {[%emt 0:00:00]} Rxa3 {[%emt 0:01:30]} 33. Rd1 {[%emt 0:00:00]} Rd6 {[%emt 0:02:05]} 34. Rc1 {[%emt 0:00:00]} Ra4 {[%emt 0:00:32]} 35. Qg3 {[%emt 0:00:00]} Rc4 {[%emt 0:01:29]} 36. Rb1 {[%emt 0:00:00]} Qc6 {[%emt 0:01:37]} 37. Qe5+ {[%emt 0:00:00]} Kh7 {[%emt 0:01:06]} 38. Rxb5 {[%emt 0:00:00]} Rc1 {[%emt 0:02:05]} 39. Rb1 {[%emt 0:00:00]} Rxf1+ {[%emt 0:01:00]} 40. Rxf1 {[%emt 0:00:00]} Be6 {[%emt 0:00:15]} 41. h3 {[%emt 0:00:00]} b5 {[%emt 0:00:45]} 42. Rb1 {[%emt 0:00:00]} Rd5 {[%emt 0:01:11]} 43. Qb8 {[%emt 0:00:00]} Rg5 {[%emt 0:00:30]} 44. g4 {[%emt 0:00:00]} h5 {[%emt 0:01:05]} 45. Qd8 {[%emt 0:00:00]} Qd5 {[%emt 0:00:35]} 46. Qf6 {[%emt 0:00:00]} Qe5 {[%emt 0:01:07]} 47. Qf3 {[%emt 0:00:00]} hxg4 {[%emt 0:00:41]} 48. hxg4 {[%emt 0:00:00]} Rxg4+ {[%emt 0:00:17]} 49. Kf1 {[%emt 0:00:00]} Bc4+ {[%emt 0:00:22]} 0-1

[Event "21st IPCA World Championship 2022"]
[Site "Ashdod"]
[Date "2022.05.16"]
[Round "9.11"]
[White "Cosic, Radoslav"]
[Black "Freiberg, Doron"]
[Result "0-1"]
[ECO "A04"]
[WhiteElo "2003"]
[BlackElo "1244"]
[Annotator "TA"]
[PlyCount "48"]
[EventDate "2022.05.09"]
[EventType "swiss"]
[EventCountry "ISR"]
[SourceTitle "playchess.com"]
[Source "ChessBase"]
[SourceQuality "1"]
[TimeControl "5400+30"]

{[%evp 9,48,47,52,0,53,0,43,37,62,56,90,100,106,88,96,91,97,73,89,71,130,131,129,118,102,102,113,75,136,54,70,63,313,316,323,297,391,375,388,368,710]} 1. Nf3 {[%emt 1:31:00]} f5 2. b3 d6 3. d4 Nd7 4. Bb2 Ngf6 {[#]} 5. Ng5 $146 {[%emt 0:00:00]} ({Predecessor:} 5. c4 c6 6. e3 g6 7. Nc3 Bg7 8. Be2 O-O 9. h4 h6 10. Qc2 Qa5 11. a3 e5 12. b4 Qc7 13. h5 Nxh5 14. Nxe5 Nxe5 15. dxe5 dxe5 16. Bxh5 gxh5 17. Rxh5 {0-1 (30) Gamboa Gonzalez,A (2044)-Sanchez Alvarez,K (2307) Santo Domingo 2018}) 5... Nb6 {[%emt 0:16:00]} 6. Nf3 {[%emt 0:00:00] A04: Unusual lines after 1 Nf3 and King's Indian Attack.} Nbd7 {[%emt 0:02:00]} 7. Ng5 {[%emt 0:00:00] [#] Black must now prevent Ne6.} Nb6 $1 {[%emt 0:00:57]} 8. c4 {[%emt 0:00:00] White is slightly better.} c6 {[%emt 0:04:37]} 9. e3 {[%emt 0:00:00]} h6 {[%emt 0:01:02]} 10. Nf3 {[%emt 0:00:00][%cal Bg5f3,Bf3h4,Bh4g6][%mdl 32]} e6 {[%emt 0:03:29]} 11. Nh4 Bd7 {[%emt 0:01:11]} 12. Ng6 {[%emt 0:00:00]} Rg8 {[%emt 0:00:15]} 13. h4 {[%emt 0:00:00]} Qc7 {[%emt 0:00:31]} 14. a4 {[%emt 0:00:00][%cal Ba2a4,Ba4a5][%mdl 32]} O-O-O {[%emt 0:03:15]} (14... Nc8 $142) 15. a5 $36 {[%emt 0:00:00][%mdl 2048] Black is under strong pressure.} Na8 {[%emt 0:00:06]} 16. Bd3 {[%emt 0:00:00]} Be8 {[%emt 0:00:27]} 17. Nxf8 {[%emt 0:00:00]} Rxf8 {[%emt 0:00:05]} 18. Nc3 {[%emt 0:00:00]} c5 {[%emt 0:05:37]} (18... Kb8 $142) 19. d5 {[%emt 0:09:00]} (19. a6 $16) 19... exd5 $1 $14 20. Bxf5+ {[%emt 0:00:00]} Bd7 $2 {[%emt 0:06:40] [#] Loses the game.} ({Better is} 20... Kb8 $1 $14) 21. Nb5 $18 {[%emt 0:00:00]} ({Weaker is} 21. Nxd5 Nxd5 22. Bxd7+ Qxd7 $16) 21... Qb8 {[%emt 0:54:48]} 22. Bxd7+ {[%emt 0:00:00]} Kxd7 {[%emt 0:00:00]} 23. Bxf6 {[%emt 0:00:00]} Rxf6 {[%emt 0:00:00]} 24. Qg4+ {[%emt 0:00:00]} Kc6 $2 {[%emt 0:00:00][%mdl 32768] Weighted Error Value: White=0.19 (very precise) /Black=0.28 (precise) . Sensor Board Error (Ke4/e5)?} (24... Ke7 25. Qxg7+ Rf7 26. Qxh6 Nc7 27. Qg5+ Kd7) 0-1